bitfinex/quotes_BTCUSD_20240921
["timestamp","ask_amount","ask_price","bid_price","bid_amount"]
[1726896588222,0.002825,62948.0,62947.0,0.030822]
[1726896588438,0.002825,62948.0,62947.0,0.04524511]
[1726896591553,0.002825,62948.0,62947.0,0.030822]
[1726896591778,0.002825,62948.0,62947.0,0.04524511]
[1726896592005,0.002825,62948.0,62947.0,0.14004511]
[1726896592668,0.002825,62948.0,62947.0,0.22004511]
[1726896598705,0.002825,62948.0,62947.0,0.205622]
[1726896598912,0.002825,62948.0,62947.0,0.21999212]
[1726896600418,0.002825,62948.0,62947.0,0.24299212]
[1726896601383,0.002825,62948.0,62947.0,0.228622]
[1726896602061,0.002825,62948.0,62947.0,0.24298703]
[1726896604534,0.002825,62948.0,62947.0,0.228622]
[1726896604764,0.002825,62948.0,62947.0,0.24297552]
[1726896607368,0.000825,62948.0,62947.0,0.24197552]
[1726896608311,0.000825,62948.0,62947.0,0.24297552]
[1726896608312,0.002825,62948.0,62947.0,0.24297552]
[1726896609015,0.002825,62948.0,62947.0,0.34297552]
[1726896609462,0.000825,62948.0,62947.0,0.35922433]
[1726896609924,0.000825,62948.0,62947.0,0.36122433]
[1726896611544,0.000825,62948.0,62947.0,0.34687081]
[1726896611779,0.000825,62948.0,62947.0,0.36119889]
[1726896615406,0.000825,62948.0,62947.0,0.34395008]
[1726896618191,0.000825,62948.0,62947.0,0.329622]
[1726896618407,0.000825,62948.0,62947.0,0.34395613]
[1726896628408,0.000825,62948.0,62947.0,0.34393244]
[1726896629566,0.000825,62948.0,62947.0,0.34193244]
[1726896630017,0.002825,62948.0,62947.0,0.34193244]
[1726896631418,0.000825,62948.0,62947.0,0.34193244]
[1726896632085,0.000825,62948.0,62947.0,0.34196159]
[1726896632541,0.000825,62948.0,62947.0,0.34396159]
[1726896633477,0.000825,62948.0,62947.0,0.329622]
[1726896635361,0.000825,62948.0,62947.0,0.327622]
[1726896635601,0.000825,62948.0,62947.0,0.328622]
[1726896636033,0.000825,62948.0,62947.0,0.327622]
[1726896636459,0.000825,62948.0,62947.0,0.329622]
[1726896637984,0.000825,62948.0,62947.0,0.327622]
[1726896638401,0.000825,62948.0,62947.0,0.330622]
[1726896638838,0.000825,62948.0,62947.0,0.327622]
[1726896639767,0.000825,62948.0,62947.0,0.335622]
[1726896651327,0.000825,62948.0,62947.0,0.35322004]
[1726896656714,0.000825,62954.0,62947.0,0.51627371]
[1726896656923,0.000825,62954.0,62953.0,0.41444578]
[1726896657140,0.000825,62954.0,62953.0,0.57749945]
[1726896657464,0.000825,62954.0,62953.0,0.64868394]
[1726896657681,0.000825,62954.0,62953.0,0.67251462]
[1726896658095,0.000825,62954.0,62953.0,0.57749945]
[1726896658530,0.000825,62954.0,62953.0,0.67236297]
[1726896658779,0.000825,62954.0,62953.0,0.57749945]
[1726896659044,0.000825,62954.0,62953.0,0.59149945]
[1726896659240,0.000825,62954.0,62953.0,0.66262047]
[1726896659921,0.000825,62954.0,62953.0,0.59149945]
[1726896660414,0.000825,62954.0,62953.0,0.66261843]
[1726896661511,0.000825,62954.0,62953.0,0.59149945]
[1726896661742,0.000825,62954.0,62953.0,0.66259833]
[1726896662216,0.000825,62954.0,62953.0,0.59149945]
[1726896662656,0.000825,62954.0,62953.0,0.63888962]
[1726896663536,0.000825,62954.0,62953.0,0.63887647]
[1726896665225,0.000825,62954.0,62953.0,0.59149945]
[1726896668312,0.000825,62956.0,62955.0,0.1751]
[1726896668555,0.000825,62956.0,62955.0,0.46432962]
[1726896668778,0.000825,62956.0,62955.0,0.46115367]
[1726896669500,0.000825,62956.0,62955.0,0.53214233]
[1726896669720,0.000825,62956.0,62955.0,0.53214344]
[1726896670416,0.000825,62956.0,62955.0,0.57794344]
[1726896670877,0.000825,62956.0,62955.0,0.50695367]
[1726896671109,0.000825,62956.0,62955.0,0.49295367]
[1726896671587,0.000825,62956.0,62955.0,0.57794344]
[1726896671807,0.000825,62956.0,62955.0,0.50695367]
[1726896672312,0.000825,62956.0,62955.0,0.57162494]
[1726896672535,0.000825,62956.0,62955.0,0.52431593]
[1726896672806,0.000825,62956.0,62955.0,0.69036204]
[1726896673375,0.000825,62956.0,62955.0,0.67636045]
[1726896673608,0.000825,62956.0,62955.0,0.62906171]
[1726896673836,0.000825,62956.0,62955.0,0.64306171]
[1726896675248,0.000825,62956.0,62955.0,0.49251593]
[1726896675478,0.000825,62956.0,62955.0,0.46951593]
[1726896675698,0.000825,62956.0,62955.0,0.014]
[1726896676427,0.000825,62956.0,62948.0,0.2399211]
[1726896676676,0.000825,62956.0,62949.0,0.16305367]
[1726896676900,0.000825,62956.0,62955.0,0.036]
[1726896677359,0.000825,62956.0,62955.0,0.023]
[1726896677586,0.000825,62956.0,62951.0,0.023]
[1726896680103,0.000825,62956.0,62951.0,0.028]
[1726896680635,0.000825,62956.0,62951.0,0.023]
[1726896680891,0.000825,62956.0,62954.0,0.95309956]
[1726896681145,0.000825,62956.0,62955.0,0.12617654]
[1726896682302,0.000825,62956.0,62955.0,0.123]
[1726896683965,0.000825,62956.0,62955.0,0.132]
[1726896687337,0.000825,62956.0,62955.0,0.70791721]
[1726896687342,0.000825,62956.0,62955.0,0.46965367]
[1726896687804,0.000825,62956.0,62955.0,0.46065367]
[1726896688264,0.000825,62956.0,62955.0,0.47465367]
[1726896689375,0.000825,62956.0,62955.0,0.46065367]
[1726896689800,0.000825,62956.0,62955.0,0.47465367]
[1726896690010,0.000825,62956.0,62955.0,0.49267878]
[1726896690236,0.000825,62956.0,62955.0,0.47867878]
[1726896690670,0.000825,62956.0,62955.0,0.49267878]
[1726896694476,0.000825,62956.0,62955.0,0.54000297]
[1726896697579,0.000825,62956.0,62955.0,0.54002822]
[1726896698232,0.000825,62956.0,62955.0,0.49267878]
[1726896699324,0.000825,62956.0,62955.0,0.56370294]
[1726896700191,0.000825,62956.0,62955.0,0.49267878]
[1726896700449,0.000825,62956.0,62955.0,0.56374365]
[1726896701102,0.000825,62956.0,62955.0,0.56374441]
[1726896701333,0.000825,62956.0,62955.0,0.49267878]
[1726896702033,0.000825,62956.0,62955.0,0.58743295]
[1726896702246,0.000825,62956.0,62955.0,0.49267878]
[1726896702464,0.000825,62956.0,62955.0,0.58749517]
[1726896706156,0.000825,62956.0,62955.0,0.49267878]
[1726896706619,0.000825,62956.0,62955.0,0.61119927]
[1726896710283,0.0023615,62963.0,62955.0,0.61119927]
[1726896710545,0.0023615,62963.0,62962.0,0.24174578]
[1726896710775,0.0023615,62963.0,62962.0,0.40479945]
[1726896712129,0.0023615,62963.0,62962.0,0.49749945]
[1726896713261,0.0031865,62963.0,62962.0,0.49749945]
[1726896713484,0.0031865,62963.0,62962.0,0.51149945]
[1726896715043,0.0031865,62963.0,62962.0,0.39275367]
[1726896715281,0.0031865,62963.0,62962.0,0.51149945]
[1726896717325,0.0031865,62963.0,62962.0,0.5290668]
[1726896724853,0.0031865,62963.0,62962.0,0.5307168]
[1726896727445,0.0031865,62963.0,62962.0,0.57814308]
[1726896729612,0.0031865,62963.0,62962.0,0.5307168]
[1726896730866,0.0031865,62963.0,62962.0,0.60185623]
[1726896731104,0.0031865,62963.0,62962.0,0.5307168]
[1726896731573,0.0031865,62963.0,62962.0,0.60185623]
[1726896732499,0.0031865,62963.0,62962.0,0.62556937]
[1726896739779,0.0031865,62963.0,62962.0,0.62566693]
[1726896741835,0.0031865,62963.0,62962.0,0.5307168]
[1726896743872,0.0031865,62963.0,62962.0,0.64940447]
[1726896744290,0.0031865,62963.0,62962.0,0.5307168]
[1726896744517,0.0031865,62963.0,62962.0,0.42831497]
[1726896744744,0.0031865,62963.0,62962.0,0.54706075]
[1726896745189,0.0031865,62963.0,62962.0,0.66575392]
[1726896745417,0.0031865,62963.0,62962.0,0.64940997]
[1726896746374,0.0031865,62963.0,62962.0,0.54707479]
[1726896747792,0.0031865,62963.0,62962.0,0.66578378]
[1726896748020,0.0031865,62963.0,62962.0,0.64942579]
[1726896748274,0.0031865,62963.0,62962.0,0.66579195]
[1726896748503,0.0031865,62963.0,62962.0,0.54708296]
[1726896749425,0.0031865,62963.0,62962.0,0.5307168]
[1726896749678,0.0031865,62963.0,62962.0,0.6494283]
[1726896750350,0.0031865,62963.0,62962.0,0.66575864]
[1726896751465,0.0031865,62963.0,62962.0,0.54704714]
[1726896754900,0.0031865,62963.0,62962.0,0.5307168]
[1726896755103,0.0031865,62963.0,62962.0,0.54708287]
[1726896758490,0.0031865,62963.0,62962.0,0.5470817]
[1726896761992,0.0031865,62963.0,62962.0,0.54713302]
[1726896764320,0.0031865,62963.0,62962.0,0.45443302]
[1726896765489,0.0031865,62963.0,62962.0,0.45444085]
[1726896765714,0.0031865,62963.0,62962.0,0.4380168]
[1726896766204,0.0031865,62963.0,62962.0,0.45443684]
[1726896769148,0.0031865,62963.0,62962.0,0.45436774]
[1726896770972,0.0031865,62963.0,62962.0,0.55026774]
[1726896772378,0.0031865,62963.0,62962.0,0.5339168]
[1726896772625,0.0031865,62963.0,62962.0,0.55031893]
[1726896774907,0.0031865,62963.0,62962.0,0.55044662]
[1726896775643,0.0031865,62963.0,62962.0,0.04974758]
[1726896775892,0.0031865,62963.0,62962.0,0.1497558]
[1726896776986,0.0031865,62963.0,62962.0,0.0727558]
[1726896781447,0.0031865,62963.0,62962.0,0.07277782]
[1726896784181,0.0031865,62963.0,62962.0,0.2915236]
[1726896784667,0.0031865,62963.0,62962.0,0.41761142]
[1726896784887,0.0031865,62963.0,62962.0,0.59734253]
[1726896786472,0.0031865,62963.0,62962.0,0.54989424]
[1726896786695,0.0031865,62963.0,62962.0,0.59734253]
[1726896787648,0.0031865,62963.0,62962.0,0.59734118]
[1726896788628,0.0031865,62963.0,62962.0,0.54989424]
[1726896789322,0.0031865,62963.0,62962.0,0.59734118]
[1726896789550,0.0031865,62963.0,62962.0,0.54989424]
[1726896790002,0.0031865,62963.0,62962.0,0.59734118]
[1726896790227,0.0031865,62963.0,62962.0,0.54989424]
[1726896794744,0.0031865,62963.0,62962.0,0.54994655]
[1726896798313,0.0031865,62963.0,62962.0,0.54994665]
[1726896800310,0.0031865,62963.0,62962.0,0.43120087]
[1726896800531,0.0031865,62963.0,62962.0,0.33600087]
[1726896801034,0.0031865,62963.0,62962.0,0.0729472]
[1726896801737,0.0031865,62963.0,62962.0,0.07284338]
[1726896812175,0.0031865,62963.0,62962.0,0.07281095]
[1726896818542,0.0031865,62963.0,62962.0,0.17281095]
[1726896818765,0.0031865,62963.0,62962.0,0.31536919]
[1726896818993,0.0031865,62963.0,62962.0,0.43411497]
[1726896819236,0.0031865,62963.0,62962.0,0.3867783]
[1726896819493,0.0031865,62963.0,62962.0,0.43423654]
[1726896819704,0.0031865,62963.0,62962.0,0.38677908]
[1726896820161,0.0031865,62963.0,62962.0,0.43423732]
[1726896820629,0.0031865,62963.0,62962.0,0.43423062]
[1726896821280,0.0031865,62963.0,62962.0,0.38677238]
[1726896821711,0.0031865,62963.0,62962.0,0.43423062]
[1726896822576,0.0031865,62963.0,62962.0,0.38677238]
[1726896823061,0.0031865,62963.0,62962.0,0.38677083]
[1726896823276,0.0031865,62963.0,62962.0,0.43426547]
[1726896823693,0.0031865,62963.0,62962.0,0.38677083]
[1726896824144,0.0031865,62963.0,62962.0,0.43426552]
[1726896824355,0.0031865,62963.0,62962.0,0.38677083]
[1726896824816,0.0031865,62963.0,62962.0,0.45795819]
[1726896825505,0.0031865,62963.0,62962.0,0.38677083]
[1726896826151,0.0031865,62963.0,62962.0,0.45801547]
[1726896826962,0.0031865,62963.0,62962.0,0.44130777]
[1726896827192,0.0031865,62963.0,62962.0,0.458026]
[1726896827411,0.0031865,62963.0,62962.0,0.62107967]
[1726896827853,0.0031865,62963.0,62962.0,0.54983503]
[1726896828067,0.0031865,62963.0,62962.0,0.6210768]
[1726896828277,0.0031865,62963.0,62962.0,0.54983503]
[1726896828963,0.0031865,62963.0,62962.0,0.64482789]
[1726896829180,0.0031865,62963.0,62962.0,0.66066351]
[1726896829858,0.0031865,62963.0,62962.0,0.54983503]
[1726896830797,0.0031865,62963.0,62962.0,0.54980568]
[1726896831502,0.0031865,62963.0,62962.0,0.64479998]
[1726896831737,0.0031865,62963.0,62962.0,0.62105315]
[1726896831971,0.0031865,62963.0,62962.0,0.54980568]
[1726896832862,0.0031865,62963.0,62962.0,0.64479998]
[1726896833786,0.0031865,62963.0,62962.0,0.62105234]
[1726896834021,0.0031865,62963.0,62962.0,0.54980568]
[1726896834925,0.0031865,62963.0,62962.0,0.64479998]
[1726896835590,0.0031865,62963.0,62962.0,0.54980568]
[1726896835822,0.0031865,62963.0,62962.0,0.62105442]
[1726896836748,0.0031865,62963.0,62962.0,0.70145174]
[1726896836984,0.0031865,62963.0,62962.0,0.63020568]
[1726896837455,0.0031865,62963.0,62962.0,0.725204]
[1726896838166,0.0031865,62963.0,62962.0,0.63021526]
[1726896838615,0.0031865,62963.0,62962.0,0.72521358]
[1726896839969,0.0031865,62963.0,62962.0,0.63021526]
[1726896840196,0.0031865,62963.0,62962.0,0.72519677]
[1726896840425,0.0031865,62963.0,62962.0,0.63021526]
[1726896840642,0.0031865,62963.0,62962.0,0.7251979]
[1726896841104,0.0031865,62963.0,62962.0,0.72518275]
[1726896841331,0.0031865,62963.0,62962.0,0.74892841]
[1726896841550,0.0031865,62963.0,62962.0,0.63020011]
[1726896842841,0.0031865,62963.0,62962.0,0.72516157]
[1726896843496,0.0031865,62963.0,62962.0,0.63020011]
[1726896844191,0.0031865,62963.0,62962.0,0.72515906]
[1726896844668,0.0031865,62963.0,62962.0,0.63013511]
[1726896844909,0.0031865,62963.0,62962.0,0.74883005]
[1726896845371,0.0031865,62963.0,62962.0,0.63013511]
[1726896848542,0.0031865,62963.0,62962.0,0.63020554]
[1726896848772,0.0031865,62963.0,62962.0,0.61620554]
[1726896849216,0.0031865,62963.0,62962.0,0.63020554]
[1726896849655,0.0031865,62963.0,62962.0,0.61620554]
[1726896850131,0.0031865,62963.0,62962.0,0.63020554]
[1726896852652,0.0031865,62963.0,62962.0,0.63020016]
[1726896856655,0.0031865,62963.0,62962.0,0.63019032]
[1726896856893,0.0031865,62963.0,62962.0,0.72501572]
[1726896857117,0.0031865,62963.0,62962.0,0.63019032]
[1726896857349,0.0031865,62963.0,62962.0,0.72501572]
[1726896857821,0.0031865,62963.0,62962.0,0.63019032]
[1726896860342,0.0031865,62963.0,62962.0,0.63019839]
[1726896862379,0.0031865,62963.0,62962.0,0.72500392]
[1726896863012,0.0031865,62963.0,62962.0,0.72500514]
[1726896864091,0.0031865,62963.0,62962.0,0.7419123]
[1726896864322,0.0031865,62963.0,62962.0,0.74194266]
[1726896865934,0.0031865,62963.0,62962.0,0.62319688]
[1726896866172,0.0031865,62963.0,62962.0,0.74194266]
[1726896867973,0.0031865,62963.0,62962.0,0.74195818]
[1726896868194,0.0031865,62963.0,62962.0,0.74185529]
[1726896868425,0.0031865,62963.0,62962.0,0.75852193]
[1726896869511,0.0031865,62963.0,62962.0,0.18340021]
[1726896869752,0.0031865,62963.0,62962.0,0.16583286]
[1726896869980,0.0031865,62963.0,62962.0,0.06583286]
[1726896870222,0.0031865,62963.0,62962.0,0.16583286]
[1726896870919,0.0031865,62963.0,62962.0,0.18883286]
[1726896874962,0.0031865,62963.0,62962.0,0.23615904]
[1726896875863,0.0031865,62963.0,62962.0,0.2194924]
[1726896876318,0.0031865,62963.0,62962.0,0.23617435]
[1726896876760,0.0031865,62963.0,62962.0,0.18875211]
[1726896877239,0.0031865,62963.0,62962.0,0.17208547]
[1726896879433,0.0031865,62963.0,62962.0,0.13865]
[1726896879689,0.0031865,62963.0,62962.0,0.17222452]
[1726896886809,0.0031865,62963.0,62962.0,0.15533521]
[1726896887019,0.0031865,62963.0,62962.0,0.17227037]
[1726896890609,0.0031865,62963.0,62962.0,0.15558516]
[1726896890843,0.0031865,62963.0,62962.0,0.17232087]
[1726896891316,0.0031865,62963.0,62962.0,0.1555957]
[1726896891542,0.0031865,62963.0,62962.0,0.17231919]
[1726896893087,0.0031865,62963.0,62962.0,0.2197629]
[1726896893300,0.0031865,62963.0,62962.0,0.17231919]
[1726896894607,0.0031865,62963.0,62962.0,0.17230708]
[1726896895067,0.0031865,62963.0,62962.0,0.17548331]
[1726896895508,0.0031865,62963.0,62962.0,0.33853698]
[1726896895733,0.0031865,62963.0,62962.0,0.33536075]
[1726896897051,0.0031865,62963.0,62962.0,0.40652479]
[1726896897529,0.0031865,62963.0,62962.0,0.33536075]
[1726896897990,0.0031865,62963.0,62962.0,0.40652479]
[1726896898226,0.0031865,62963.0,62962.0,0.3898031]
[1726896898471,0.0031865,62963.0,62962.0,0.40651353]
[1726896898713,0.0031865,62963.0,62962.0,0.40648878]
[1726896900359,0.0031865,62963.0,62962.0,0.4065053]
[1726896900600,0.0031865,62963.0,62962.0,0.33532474]
[1726896901044,0.0031865,62963.0,62962.0,0.30170367]
[1726896901274,0.0031865,62963.0,62962.0,0.33849562]
[1726896901492,0.0031865,62963.0,62962.0,0.33531955]
[1726896901713,0.0031865,62963.0,62962.0,0.40650781]
[1726896902152,0.0031865,62963.0,62962.0,0.33531955]
[1726896902396,0.0031865,62963.0,62962.0,0.43020494]
[1726896903135,0.0031865,62963.0,62962.0,0.41721955]
[1726896903371,0.0031865,62963.0,62962.0,0.50761955]
[1726896904480,0.0031865,62963.0,62962.0,0.47400367]
[1726896904702,0.0031865,62963.0,62962.0,0.50758152]
[1726896906470,0.0031865,62963.0,62962.0,0.62618826]
[1726896906985,0.0031865,62963.0,62962.0,0.50758005]
[1726896907936,0.0031865,62963.0,62962.0,0.50754611]
[1726896914888,0.0031865,62963.0,62962.0,0.49080395]
[1726896915162,0.0031865,62963.0,62962.0,0.50744637]
[1726896915386,0.0031865,62963.0,62962.0,0.50745022]
[1726896915853,0.0031865,62963.0,62962.0,0.4908078]
[1726896916081,0.0031865,62963.0,62962.0,0.50745239]
[1726896918613,0.0031865,62963.0,62962.0,0.49064826]
[1726896918833,0.0031865,62963.0,62962.0,0.5074468]
[1726896922211,0.0031865,62963.0,62962.0,0.50743843]
[1726896927923,0.0031865,62963.0,62962.0,0.49343843]
[1726896928620,0.0031865,62963.0,62962.0,0.52079821]
[1726896929085,0.0031865,62963.0,62962.0,0.52131071]
[1726896929311,0.0031865,62963.0,62962.0,0.53531071]
[1726896930005,0.0031865,62963.0,62962.0,0.52131071]
[1726896930473,0.0031865,62963.0,62962.0,0.65405649]
[1726896931225,0.0031865,62963.0,62962.0,0.53531071]
[1726896931462,0.0031865,62963.0,62962.0,0.62669606]
[1726896932868,0.0031865,62963.0,62962.0,0.48495028]
[1726896933098,0.0031865,62963.0,62962.0,0.40755031]
[1726896933344,0.0031865,62963.0,62962.0,0.31265028]
[1726896935022,0.0031865,62963.0,62962.0,0.33565028]
[1726896935705,0.0031865,62963.0,62962.0,0.17259661]
[1726896935944,0.0031865,62963.0,62962.0,0.15549635]
[1726896936169,0.0031865,62963.0,62962.0,0.21974283]
[1726896936395,0.0031865,62963.0,62962.0,0.17228089]
[1726896936619,0.0031865,62963.0,62962.0,0.07228089]
[1726896938254,0.0031865,62963.0,62962.0,0.17228089]
[1726896945709,0.0031865,62963.0,62962.0,0.15543454]
[1726896945963,0.0031865,62963.0,62962.0,0.17229363]
[1726896946212,0.0031865,62963.0,62962.0,0.15535988]
[1726896946453,0.0031865,62963.0,62962.0,0.18900377]
[1726896947338,0.0031865,62963.0,62962.0,0.08900377]
[1726896947728,0.0031865,62963.0,62962.0,0.0722939]
[1726896949308,0.0031865,62963.0,62962.0,0.03865]
[1726896949526,0.0031865,62963.0,62962.0,0.05546959]
[1726896949750,0.0031865,62963.0,62962.0,0.07210267]
[1726896956128,0.0031865,62963.0,62962.0,0.05528308]
[1726896956342,0.0031865,62963.0,62962.0,0.05535217]
[1726896956619,0.0031865,62963.0,62962.0,0.07190876]
[1726896959904,0.0031865,62963.0,62962.0,0.07186159]
[1726896962123,0.0031865,62963.0,62962.0,0.03865]
[1726896962348,0.0031865,62963.0,62962.0,0.05520001]
[1726896962580,0.0031865,62963.0,62962.0,0.07188386]
[1726896966059,0.0031865,62963.0,62962.0,0.07176245]
[1726896969686,0.0031865,62963.0,62962.0,0.03865]
[1726896969908,0.0031865,62963.0,62962.0,0.07205377]
[1726896973501,0.0031865,62963.0,62962.0,0.07218494]
[1726896977413,0.0031865,62963.0,62962.0,0.03865]
[1726896977620,0.0031865,62963.0,62962.0,0.07214424]
[1726896981025,0.0031865,62963.0,62962.0,0.17214424]
[1726896981446,0.0031865,62963.0,62962.0,0.172146]
[1726896982536,0.0031865,62963.0,62962.0,0.072146]
[1726896985505,0.0031865,62963.0,62962.0,0.08882033]
[1726896988025,0.0031865,62963.0,62962.0,0.07215517]
[1726896988888,0.0031865,62963.0,62962.0,0.17215517]
[1726896992303,0.0031865,62963.0,62962.0,0.18399417]
[1726896993015,0.0031865,62963.0,62962.0,0.18402029]
[1726896998803,0.0031865,62963.0,62962.0,0.08402029]
[1726896999037,0.0031865,62963.0,62962.0,0.08404795]
[1726896999253,0.0031865,62963.0,62962.0,0.06715423]
[1726896999704,0.0031865,62963.0,62962.0,0.07004795]
[1726896999930,0.0031865,62963.0,62962.0,0.050489]
[1726897000158,0.0031865,62963.0,62962.0,0.08397726]
[1726897000510,0.0031865,62963.0,62962.0,0.06714309]
[1726897000742,0.0031865,62963.0,62962.0,0.06075299]
[1726897002586,0.0031865,62963.0,62962.0,0.07767328]
[1726897006455,0.0031865,62963.0,62962.0,0.0610115]
[1726897006717,0.0031865,62963.0,62962.0,0.07768183]
[1726897007212,0.0031865,62963.0,62962.0,0.06079124]
[1726897008121,0.0031865,62963.0,62962.0,0.04415933]
[1726897014215,0.0031865,62963.0,62962.0,0.04415903]
[1726897017742,0.0031865,62963.0,62962.0,0.027489]
[1726897017970,0.0031865,62963.0,62962.0,0.04416054]
[1726897018649,0.0031865,62963.0,62962.0,0.0441621]
[1726897020954,0.0031865,62963.0,62962.0,0.04414748]
[1726897021423,0.22043228,62963.0,62962.0,0.04414748]
[1726897021655,0.22043228,62963.0,62962.0,0.027489]
[1726897021905,0.26804349,62963.0,62962.0,0.027489]
[1726897022167,0.26804349,62963.0,62962.0,0.013489]
[1726897022390,0.26805199,62963.0,62962.0,0.013489]
[1726897022617,0.22043228,62963.0,62962.0,0.027489]
[1726897023059,0.22043228,62963.0,62962.0,0.013489]
[1726897023274,0.22043228,62963.0,62962.0,0.022489]
[1726897026030,0.26805199,62963.0,62962.0,0.022489]
[1726897026262,0.26803698,62963.0,62962.0,0.022489]
[1726897026486,0.22043228,62963.0,62962.0,0.022489]
[1726897029707,0.26803252,62963.0,62962.0,0.022489]
[1726897030604,0.22043228,62963.0,62962.0,0.022489]
[1726897030854,0.26803252,62963.0,62962.0,0.022489]
[1726897031540,0.22043228,62963.0,62962.0,0.022489]
[1726897032178,0.26801852,62963.0,62962.0,0.022489]
[1726897032445,0.22043228,62963.0,62962.0,0.022489]
[1726897032658,0.38348595,62963.0,62962.0,0.022489]
[1726897033098,0.43106783,62963.0,62962.0,0.022489]
[1726897034509,0.38348595,62963.0,62962.0,0.022489]
[1726897034725,0.43106783,62963.0,62962.0,0.022489]
[1726897035830,0.43106783,62963.0,62962.0,0.013489]
[1726897036039,0.43306783,62963.0,62962.0,0.014489]
[1726897036747,0.43306122,62963.0,62962.0,0.014489]
[1726897045858,0.33656122,62963.0,62962.0,0.014489]
[1726897046325,0.33655523,62963.0,62962.0,0.014489]
[1726897050368,0.28898595,62963.0,62962.0,0.014489]
[1726897051916,0.33655428,62963.0,62962.0,0.014489]
[1726897052142,0.2158085,62963.0,62962.0,0.014489]
[1726897052355,0.33455428,62963.0,62962.0,0.014489]
[1726897053202,0.28698595,62963.0,62962.0,0.014489]
[1726897054031,0.28898595,62963.0,62962.0,0.014489]
[1726897057256,0.28698595,62963.0,62962.0,0.014489]
[1726897063658,0.35838761,62963.0,62962.0,0.014489]
[1726897065632,0.51959143,62963.0,62962.0,0.014489]
[1726897065907,0.61479365,62963.0,62962.0,0.014489]
[1726897067480,0.51959143,62963.0,62962.0,0.014489]
[1726897067708,0.61479365,62963.0,62962.0,0.014489]
[1726897068385,0.51959143,62963.0,62962.0,0.014489]
[1726897068872,0.61489063,62963.0,62962.0,0.014489]
[1726897069363,0.61689063,62963.0,62962.0,0.014489]
[1726897069826,0.61689309,62963.0,62962.0,0.014489]
[1726897070696,0.52159143,62963.0,62962.0,0.014489]
[1726897070965,0.64059421,62963.0,62962.0,0.014489]
[1726897071178,0.52159143,62963.0,62962.0,0.014489]
[1726897073028,0.61689863,62963.0,62962.0,0.014489]
[1726897073212,0.61689916,62963.0,62962.0,0.014489]
[1726897073503,0.52159143,62963.0,62962.0,0.014489]
[1726897076819,0.64059421,62963.0,62962.0,0.014489]
[1726897077027,0.52159143,62963.0,62962.0,0.014489]
[1726897078833,0.64059421,62963.0,62962.0,0.014489]
[1726897079071,0.52159143,62963.0,62962.0,0.014489]
[1726897079773,0.6407359,62963.0,62962.0,0.014489]
[1726897080235,0.52159143,62963.0,62962.0,0.014489]
[1726897085563,0.52150366,62963.0,62962.0,0.014489]
[1726897086249,0.6406481,62963.0,62962.0,0.014489]
[1726897086464,0.52150366,62963.0,62962.0,0.014489]
[1726897090325,0.52150826,62963.0,62962.0,0.014489]
[1726897095041,0.64065513,62963.0,62962.0,0.014489]
[1726897095288,0.52150826,62963.0,62962.0,0.014489]
[1726897095511,0.51950826,62963.0,62962.0,0.014489]
[1726897098153,0.52150826,62963.0,62962.0,0.014489]
[1726897102395,0.51950826,62963.0,62962.0,0.014489]
[1726897103097,0.52150826,62963.0,62962.0,0.014489]
[1726897104230,0.51950826,62963.0,62962.0,0.014489]
[1726897106167,0.52150826,62963.0,62962.0,0.014489]
[1726897109740,0.52169048,62963.0,62962.0,0.014489]
[1726897117140,0.28898595,62963.0,62962.0,0.014489]
[1726897117354,0.52187829,62963.0,62962.0,0.014489]
[1726897124518,0.52193165,62963.0,62962.0,0.014489]
[1726897125999,0.51993165,62963.0,62962.0,0.014489]
[1726897126461,0.40118587,62963.0,62962.0,0.014489]
[1726897127820,0.52036428,62963.0,62962.0,0.014489]
[1726897128052,0.40118587,62963.0,62962.0,0.014489]
[1726897129839,0.5203603,62963.0,62962.0,0.014489]
[1726897131144,0.52035788,62963.0,62962.0,0.014489]
[1726897131371,0.52035698,62963.0,62962.0,0.014489]
[1726897131582,0.40118587,62963.0,62962.0,0.014489]
[1726897134127,0.52035458,62963.0,62962.0,0.014489]
[1726897134355,0.40118587,62963.0,62962.0,0.014489]
[1726897139057,0.40126906,62963.0,62962.0,0.014489]
[1726897142746,0.52001484,62963.0,62962.0,0.014489]
[1726897145895,0.52201484,62963.0,62962.0,0.014489]
[1726897149598,0.52001484,62963.0,62962.0,0.014489]
[1726897152221,0.52201484,62963.0,62962.0,0.014489]
[1726897156909,0.52214557,62963.0,62962.0,0.014489]
[1726897157170,0.40139979,62963.0,62962.0,0.014489]
[1726897157415,0.52014557,62963.0,62962.0,0.014489]
[1726897161709,0.52013084,62963.0,62962.0,0.014489]
[1726897169035,0.52213084,62963.0,62962.0,0.014489]
[1726897176054,0.40138506,62963.0,62962.0,0.014489]
[1726897176287,0.40138506,62963.0,62962.0,0.106289]
[1726897176501,0.52009571,62963.0,62962.0,0.106289]
[1726897177357,0.28698595,62963.0,62962.0,0.106289]
[1726897177596,0.51999727,62963.0,62962.0,0.106289]
[1726897181410,0.51993696,62963.0,62962.0,0.106289]
[1726897186167,0.28698595,62963.0,62962.0,0.106289]
[1726897186389,0.51992934,62963.0,62962.0,0.106289]
[1726897186606,0.52192934,62963.0,62962.0,0.106289]
[1726897187069,0.51992934,62963.0,62962.0,0.106289]
[1726897191116,0.51991393,62963.0,62962.0,0.106289]
[1726897195480,0.40116815,62963.0,62962.0,0.106289]
[1726897195724,0.51991393,62963.0,62962.0,0.106289]
[1726897195958,0.28698595,62963.0,62962.0,0.106289]
[1726897196233,0.51992821,62963.0,62962.0,0.106289]
[1726897200674,0.51985922,62963.0,62962.0,0.106289]
[1726897204387,0.51986681,62963.0,62962.0,0.106289]
[1726897210503,0.5202953,62963.0,62962.0,0.106289]
[1726897217665,0.5279795,62963.0,62962.0,0.106289]
[1726897223706,0.52794345,62963.0,62962.0,0.106289]
[1726897224648,0.40877641,62963.0,62962.0,0.106289]
[1726897225116,0.52794479,62963.0,62962.0,0.106289]
[1726897225847,0.52794508,62963.0,62962.0,0.106289]
[1726897226074,0.40877641,62963.0,62962.0,0.106289]
[1726897226779,0.52794613,62963.0,62962.0,0.106289]
[1726897226993,0.40877641,62963.0,62962.0,0.106289]
[1726897227449,0.52794554,62963.0,62962.0,0.106289]
[1726897227689,0.40877641,62963.0,62962.0,0.106289]
[1726897227935,0.52794596,62963.0,62962.0,0.106289]
[1726897231448,0.40877641,62963.0,62962.0,0.106289]
[1726897233956,0.52794596,62963.0,62962.0,0.106289]
[1726897234414,0.40877641,62963.0,62962.0,0.106289]
[1726897234624,0.52794596,62963.0,62962.0,0.106289]
[1726897234839,0.40877641,62963.0,62962.0,0.106289]
[1726897235283,0.52794596,62963.0,62962.0,0.106289]
[1726897235502,0.40877641,62963.0,62962.0,0.106289]